fUST/lending_fUST_20250927
["ID","MTS","AMOUNT","RATE_DAILY","PERIOD"]
[387833548,1758906638756,-500.0,0.00041644,120]
[387833549,1758906638765,-4793.44,0.000417,14]
[387833550,1758906638774,-534.14478252,0.00041701,120]
[387833551,1758906638783,-252.99905875,0.00041882,3]
[387833552,1758906638791,-500.0,0.00041918,120]
[387833553,1758906638801,-150.0,0.00041973,7]
[387833554,1758906638809,-161.05340167,0.00041973,10]
[387833555,1758906638818,-713.51028235,0.00041978,38]
[387833556,1758906638827,-100000.0,0.00042,26]
[387833557,1758906638837,-100000.0,0.00042,26]
[387833558,1758906638846,-635.0,0.0004204,2]
[387833559,1758906638855,-2160.0,0.0004204,2]
[387833560,1758906638863,-500.0,0.00042192,120]
[387833561,1758906638873,-168.0,0.00042402,2]
[387833562,1758906638882,-500.0,0.00042466,120]
[387833563,1758906638891,-300.0,0.00042521,7]
[387833564,1758906638901,-168.0,0.00042633,2]
[387833565,1758906638910,-151.0,0.000427,10]
[387833566,1758906638919,-500.0,0.0004274,120]
[387833567,1758906638929,-151.0,0.000428,10]
[387833568,1758906638939,-534.14478252,0.00042933,120]
[387833569,1758906638948,-100000.0,0.00043,26]
[387833570,1758906638957,-100000.0,0.00043,26]
[387833571,1758906638967,-500.0,0.00043014,120]
[387833572,1758906638976,-1000.0,0.00043014,60]
[387833573,1758906638986,-450.0,0.00043068,7]
[387833574,1758906638995,-151.0,0.00043125,60]
[387833575,1758906639010,-500.0,0.00043288,120]
[387833576,1758906639019,-713.51028235,0.0004345,42]
[387833577,1758906639030,-325.83,0.00043562,120]
[387833578,1758906639039,-150.81962974,0.00043616,7]
[387833579,1758906639050,-500.0,0.00043835,120]
[387833580,1758906639059,-500.0,0.00043835,120]
[387833581,1758906639068,-195.85169742,0.00043835,120]
[387833582,1758906639079,-351.875631,0.00043836,2]
[387833583,1758906639088,-159.56087727,0.000439,120]
[387833584,1758906639097,-1473.06964045,0.00044,26]
[387833604,1758906640028,-410.0,0.00042542,2]
[387833605,1758906640038,-4509.60664014,0.00044,26]
[387833606,1758906640051,-2714.09296147,0.00044,26]
[387833607,1758906640090,-27741.51682274,0.00044,26]
[387833608,1758906640103,-3824.06673725,0.00044,26]
[387833609,1758906640116,-8908.85719339,0.00044,26]
[387833610,1758906640130,-16334.0243048,0.00044,26]
[387833611,1758906640143,-8064.82221729,0.00044,26]
[387833638,1758906643023,-459.88523132,0.00024929,2]
[387833639,1758906643033,-159.090061,0.0003372,2]
[387833640,1758906643043,-59.68729903,0.00044,26]
[387833641,1758906643076,-26370.25618344,0.00044,26]
[387833642,1758906643087,-65345.12409268,0.00044,20]
[387833646,1758906643153,-34654.87590732,0.00044,20]
[387833647,1758906643173,-151.59627498,0.0004414,2]
[387833648,1758906643183,-272.87329497,0.0004414,2]
[387833649,1758906643192,-485.10807995,0.0004414,2]
[387833650,1758906643201,-165.70648507,0.0004414,2]
[387833651,1758906643210,-461.52291808,0.0004414,2]
[387833652,1758906643219,-151.0,0.000443,17]
[387833653,1758906643228,-651.0,0.000444,30]
[387833654,1758906643238,-151.0,0.000446,12]
[387833655,1758906643247,-713.51028235,0.00044922,45]
[387833656,1758906643256,-6548.59281883,0.0004494,2]
[387833657,1758906643265,-57271.83553013,0.00045,26]
[387833658,1758906643276,-42728.16446987,0.00045,26]
[387833659,1758906643286,-44290.26000097,0.00045,120]
[387833664,1758906646004,-13270.46386162,0.00045,120]
[387833666,1758906646025,-9304.67770027,0.00045,120]
[387833667,1758906646058,-1023.07078029,0.00045,120]
[387833668,1758906646075,-499.23964922,0.00045,120]
[387833669,1758906646094,-442.41826624,0.00045,120]
[387833679,1758906674414,417.15472785,0.00026,60]
[387833680,1758906705500,-340.84018414,0.000199,2]
[387833681,1758906715598,-340.84018414,0.00022949,2]
[387833682,1758906735514,-329.64453055,0.00024929,2]
[387833692,1758906886334,-374.10811188,0.000199,2]
[387833693,1758906896126,-374.10811188,0.00022949,2]
[387833698,1758907067382,-342.8766926,0.000199,2]
[387833699,1758907078974,-342.8766926,0.00022949,2]
[387833700,1758907097058,-159.302375,0.00024953,2]
[387833702,1758907137403,-159.362375,0.00024953,13]
[387833705,1758907238107,-246.05503927,0.000199,2]
[387833716,1758907671883,8022.83745591,0.00018,2]
[387833717,1758907675772,526.30120026,0.00018,2]
[387833719,1758907685181,1450.87134383,0.00021372,2]
[387833720,1758907685203,3549.12865617,0.00021372,2]
[387833725,1758907699042,1440.78197094,0.00018,2]
[387833726,1758907701121,4334.32271944,0.00021372,2]
[387833727,1758907709069,675.77665345,0.00021372,2]
[387833728,1758907709092,3181.69155489,0.00021372,2]
[387833729,1758907715529,6818.31844511,0.00017,2]
[387833730,1758907715552,3219.37624073,0.00017,2]
[387833731,1758907718007,6780.63375927,0.00015,2]
[387833732,1758907718030,2006.52239716,0.00015,2]
[387833734,1758907720124,1000.0,0.0001,2]
[387833735,1758907720825,6993.48760284,0.00018,2]
[387833736,1758907720848,10000.01,0.00018,2]
[387833737,1758907720871,2698.49899835,0.00018,2]
[387833738,1758907724464,5000.0,0.00021372,2]
[387833742,1758907732428,5000.0,0.00021372,2]
[387833743,1758907740886,5000.0,0.00021372,2]
[387833744,1758907748915,5000.0,0.00021372,2]
[387833745,1758907757681,0.01,0.00021372,2]
[387833746,1758907757703,4160.59465756,0.00021372,2]
[387833747,1758907760453,-246.05503918,0.00021372,2]
[387833748,1758907760481,-237.54496635,0.00022744,2]
[387833749,1758907765624,3600.86756259,0.00022744,2]
[387833750,1758907770440,-246.05503918,0.00022844,2]
[387833751,1758907780577,-5000.0,0.00024033,2]
[387833752,1758907796599,5000.0,0.00024276,2]
[387833753,1758907819599,5000.0,0.00024276,2]
[387833769,1758907832193,-305.8187302,0.00024276,2]
[387833771,1758907832203,-246.05503918,0.00024316,2]
[387833774,1758907832214,-460.0,0.00024774,2]
[387833776,1758907832224,-300.0,0.00024999,2]
[387833778,1758907832234,-300.0,0.00024999,2]
[387833780,1758907832243,-300.0,0.00024999,2]
[387833782,1758907832253,-300.0,0.00024999,2]
[387833784,1758907832262,-1200.0,0.00024999,2]
[387833786,1758907832271,-219.37751119,0.00024999,2]
[387833789,1758907832281,-500.0,0.00024999,2]
[387833791,1758907832291,-258.58550714,0.00024999,2]
[387833793,1758907832300,-500.0,0.00024999,2]
[387833796,1758907832314,-500.0,0.00024999,2]
[387833799,1758907832324,-500.0,0.00024999,2]
[387833800,1758907832334,-500.0,0.00024999,2]
[387833804,1758907832345,-618.58752864,0.00025,2]
[387833807,1758907832354,-4608.21415353,0.00025,7]
[387833809,1758907832363,-3324.71786038,0.00025,2]
[387833813,1758907832373,-19924.05962734,0.00025,2]
[387833815,1758907832385,-29156.15542833,0.00025,2]
[387833822,1758907832409,-34.44757583,0.00025,2]
[387833825,1758907832418,-246.05503918,0.00025788,4]
[387833828,1758907832427,-204.59895898,0.00025898,2]
[387833830,1758907832437,-417.15472785,0.00026599,2]
[387833832,1758907832446,-160.0,0.00026599,2]
[387833834,1758907832454,-500.0,0.000269,2]
[387833836,1758907832465,-500.0,0.000269,2]
[387833838,1758907832474,-420.0,0.00027082,2]
[387833842,1758907832483,-246.05503918,0.00027259,7]
[387833845,1758907832493,-197.925725,0.0002739,2]
[387833848,1758907832502,-150.0,0.0002739,2]
[387833850,1758907832511,-236.31684772,0.00027448,5]
[387833853,1758907832520,-1000.0,0.00027448,5]
[387833855,1758907832529,-500.0,0.00027533,5]
[387833857,1758907832538,-403.3611297,0.00027747,2]
[387833859,1758907832547,-1500.0,0.00027996,5]
[387833861,1758907832556,-1028.30750259,0.00028081,5]
[387833863,1758907832565,-500.0,0.00028544,5]
[387833865,1758907832575,-1200.0,0.00028729,2]
[387833867,1758907832584,-689.82979508,0.00028729,2]
[387833869,1758907832593,-344.30062215,0.0002873,2]
[387833871,1758907832601,-500.0,0.0002873,2]
[387833873,1758907832611,-500.0,0.0002873,2]
[387833875,1758907832620,-500.0,0.0002873,2]
[387833877,1758907832629,-500.0,0.0002873,2]
[387833879,1758907832638,-500.0,0.0002873,2]
[387833880,1758907832647,-550.0,0.0002873,2]
[387833882,1758907832656,-448.61667734,0.0002873,2]
[387833884,1758907832665,-500.0,0.0002873,2]
[387833886,1758907832675,-447.58592335,0.0002873,2]
[387833888,1758907832684,-500.0,0.0002873,2]
[387833890,1758907832693,-500.0,0.0002873,2]
[387833892,1758907832702,-392.42866465,0.0002873,2]
[387833894,1758907832714,-500.0,0.0002873,2]
[387833896,1758907832723,-356.9454022,0.0002873,2]
[387833898,1758907832733,-323.37655882,0.0002873,2]
[387833900,1758907832743,-215.22477649,0.0002873,2]
[387833902,1758907832753,-246.05503918,0.00028731,10]
[387833905,1758907832763,-336.14797844,0.00028812,2]
[387833907,1758907832773,-587.0,0.00029339,2]
[387833908,1758907832782,-246.05503918,0.00030203,13]
[387833910,1758907832792,-710.20971656,0.00031004,2]
[387834107,1758907838265,-500.0,0.00024999,2]
[387834108,1758907838275,-375.64958081,0.00024999,2]
[387834109,1758907838284,-500.0,0.00024999,2]
[387834110,1758907838295,-500.0,0.00024999,2]
[387834111,1758907838305,-500.0,0.00024999,2]
[387834112,1758907838315,-171.79028344,0.00031004,2]
[387834113,1758907838324,-246.05503918,0.00031675,16]
[387834114,1758907838333,-823.0,0.00031784,2]
[387834115,1758907838343,-169.62692057,0.00032,120]
[387834116,1758907838351,-217.99592756,0.00032,120]
[387834117,1758907838361,-319.99999999,0.00032,120]
[387834118,1758907838373,-177.4108125,0.00032,120]
[387834119,1758907838464,-1194.13337081,0.00032092,2]
[387834120,1758907838474,-169.62692057,0.000323,120]
[387834121,1758907838483,-316.688068,0.00032877,2]
[387834122,1758907838493,-246.05503918,0.00033147,19]
[387834123,1758907838502,-500.0,0.00033644,7]
[387834124,1758907838511,-202.0,0.00034433,2]
[387834125,1758907838520,-246.05503918,0.00034619,23]
[387834126,1758907838529,-1000.0,0.00035329,30]
[387834127,1758907838538,-154.914,0.00035329,41]
[387834128,1758907838547,-246.05503918,0.00036091,26]
[387834129,1758907838557,-160.0,0.00036224,2]
[387834130,1758907838566,-246.05503918,0.00037563,29]
[387834131,1758907838575,-316.688068,0.00038356,2]
[387834132,1758907838584,-464.94031076,0.000387,120]
[387834133,1758907838594,-246.05503918,0.00039034,32]
[387834134,1758907838603,-1000.0,0.0004,60]
[387834135,1758907838612,-650.07532387,0.0004,120]
[387834136,1758907838621,-500.0,0.0004,120]
[387834137,1758907838630,-337.60430945,0.0004,120]
[387834138,1758907838639,-519.77163818,0.0004,30]
[387834139,1758907838648,-151.0,0.0004,60]
[387834140,1758907838657,-311.82572029,0.00040503,120]
[387834141,1758907838666,-246.05503918,0.00040506,35]
[387834142,1758907838676,-168.0,0.00040604,2]
[387834143,1758907838685,-168.0,0.00041484,2]
[387834144,1758907838694,-311.82572029,0.00041701,120]
[387834145,1758907838704,-246.05503918,0.00041978,38]
[387834146,1758907838718,-39372.92923628,0.00042,2]
[387834147,1758907838728,-10013.56250414,0.00042,90]
[387834148,1758907838739,-311.82572029,0.00042933,120]
[387834149,1758907838749,-265245.46494412,0.00043,26]
[387834150,1758907838759,-155.34811993,0.0004335,2]
[387834151,1758907838769,-246.05503918,0.0004345,42]
[387834152,1758907838780,-500.0,0.00043473,2]
[387834153,1758907838790,-500.0,0.00043473,10]
[387834154,1758907838799,-82435.97997063,0.00043489,3]
[387834198,1758907840613,-8389.115948,0.00043489,3]
[387834199,1758907840627,-10668.404052,0.00043489,3]
[387834214,1758907843414,-5000.0,0.00024953,2]
[387834216,1758907843424,-158.899649,0.00028554,20]
[387834217,1758907843433,-75904.78228737,0.00043489,3]
[387834218,1758907843442,-866.0,0.00043489,30]
[387834219,1758907843451,-146959.66606078,0.00043499,14]
[387834230,1758907846638,-160.95740859,0.00024999,2]
[387834231,1758907846648,-271.78960022,0.00024999,2]
[387834232,1758907846657,-3053.85899865,0.00043499,14]
[387834233,1758907846677,-275623.60629261,0.00043499,14]
[387834234,1758907846687,-155.34811993,0.00043736,2]
[387834235,1758907846696,-19710.9202509,0.00043824,3]
[387834236,1758907846706,-316.688068,0.00043836,2]
[387834237,1758907846715,-3089.4980008,0.00043934,2]
[387834238,1758907846725,-502.78751459,0.00044021,10]
[387834239,1758907846734,-13353.8810988,0.00044257,2]
[387834241,1758907846743,-2160.0,0.00044544,2]
[387834243,1758907846752,-635.0,0.00044544,2]
[387834245,1758907846762,-410.0,0.00044544,2]
[387834247,1758907846771,-651.0,0.000449,30]
[387834249,1758907846780,-246.05503918,0.00044922,45]
[387834250,1758907846789,-19710.9202509,0.0004499,3]
[387834252,1758907846799,-500.0,0.00044999,120]
[387834253,1758907846808,-500.0,0.00044999,120]
[387834254,1758907846817,-195.85169742,0.00044999,120]
[387834255,1758907846826,-151.00014072,0.00044999,120]
[387834257,1758907846836,-151.0,0.00044999,120]
[387834258,1758907846845,-350.0,0.00044999,120]
[387834259,1758907846855,-500.0,0.00044999,120]
[387834262,1758907846929,-350.0,0.00044999,120]
[387834263,1758907846938,-500.0,0.00044999,120]
[387834264,1758907846948,-350.0,0.00044999,120]
[387834266,1758907846959,-500.0,0.00044999,120]
[387834267,1758907846970,-350.0,0.00044999,120]
[387834268,1758907846979,-500.0,0.00044999,120]
[387834269,1758907846988,-500.0,0.00044999,120]
[387834271,1758907846998,-350.0,0.00044999,120]
[387834272,1758907847007,-500.0,0.00044999,120]
[387834273,1758907847016,-350.0,0.00044999,120]
[387834274,1758907847026,-500.0,0.00044999,120]
[387834275,1758907847035,-350.0,0.00044999,120]
[387834276,1758907847043,-500.0,0.00044999,120]
[387834277,1758907847052,-500.0,0.00044999,120]
[387834278,1758907847061,-151.0,0.00044999,120]
[387834279,1758907847070,-500.0,0.00044999,120]
[387834280,1758907847079,-200.0,0.00044999,120]
[387834281,1758907847088,-151.0,0.00044999,120]
[387834282,1758907847097,-500.0,0.00044999,120]
[387834283,1758907847106,-200.0,0.00044999,120]
[387834284,1758907847115,-151.0,0.00044999,120]
[387834285,1758907847125,-500.0,0.00044999,120]
[387834286,1758907847134,-200.0,0.00044999,120]
[387834287,1758907847143,-151.0,0.00044999,120]
[387834288,1758907847153,-200.0,0.00044999,120]
[387834289,1758907847162,-151.0,0.00044999,120]
[387834290,1758907847171,-500.0,0.00044999,120]
[387834291,1758907847180,-200.0,0.00044999,120]
[387834292,1758907847189,-151.0,0.00044999,120]
[387834293,1758907847198,-500.0,0.00044999,120]
[387834294,1758907847207,-250.0,0.00044999,120]
[387834295,1758907847217,-200.0,0.00044999,120]
[387834296,1758907847225,-151.0,0.00044999,120]
[387834297,1758907847235,-500.0,0.00044999,120]
[387834298,1758907847244,-200.0,0.00044999,120]
[387834299,1758907847253,-399.93188106,0.00044999,120]
[387834300,1758907847263,-500.0,0.00044999,120]
[387834301,1758907847272,-500.0,0.00044999,120]
[387834302,1758907847281,-500.0,0.00044999,120]
[387834303,1758907847290,-500.0,0.00044999,120]
[387834304,1758907847299,-500.0,0.00044999,120]
[387834305,1758907847311,-500.0,0.00044999,120]
[387834306,1758907847320,-500.0,0.00044999,120]
[387834307,1758907847329,-500.0,0.00044999,120]
[387834308,1758907847339,-500.0,0.00044999,120]
[387834309,1758907847348,-31169.86974139,0.00045,120]
[387834310,1758907847357,-1000.0,0.00045,60]
[387834311,1758907847366,-10000.000871,0.00045,120]
[387834312,1758907847378,-171.42,0.00045,30]
[387834313,1758907847388,-150.0,0.00045125,2]
[387834314,1758907847398,-294.507,0.00045125,2]
[387834315,1758907847407,-480.0,0.00045205,120]
[387834316,1758907847416,-160.0,0.00045349,3]
[387834317,1758907847426,-400.93932655,0.00045439,7]
[387834318,1758907847435,-353.60532827,0.00045439,7]
[387834319,1758907847445,-4587.0,0.00045484,120]
[387834320,1758907847454,-202.44817135,0.0004555,120]
[387834321,1758907847466,-153.9638014,0.00045863,30]
[387834322,1758907847476,-10994.88,0.00046,26]
[387834323,1758907847485,-19710.9202509,0.00046017,4]
[387834324,1758907847495,-152.78851229,0.00046027,30]
[387834325,1758907847504,-4044.52,0.00046027,30]
[387834326,1758907847513,-966.96,0.00046027,30]
[387834327,1758907847523,-480.0,0.00046027,30]
[387834328,1758907847532,-480.0,0.00046027,30]
[387834329,1758907847541,-480.0,0.00046027,30]
[387834330,1758907847550,-480.0,0.00046027,30]
[387834331,1758907847559,-480.0,0.00046027,30]
[387834332,1758907847569,-480.0,0.00046027,30]
[387834333,1758907847578,-480.0,0.00046027,30]
[387834334,1758907847587,-480.0,0.00046027,30]
[387834335,1758907847597,-480.0,0.00046027,30]
[387834336,1758907847607,-480.0,0.00046027,30]
[387834337,1758907847617,-480.0,0.00046027,30]
[387834338,1758907847626,-480.0,0.00046027,30]
[387834339,1758907847635,-480.0,0.00046027,30]
[387834340,1758907847645,-480.0,0.00046027,30]
[387834341,1758907847654,-480.0,0.00046027,30]
[387834342,1758907847663,-480.0,0.00046027,30]
[387834343,1758907847672,-480.0,0.00046027,30]
[387834344,1758907847681,-480.0,0.00046027,30]
[387834345,1758907847690,-502.1090063,0.00046027,2]
[387834346,1758907847699,-480.0,0.00046027,30]
[387834347,1758907847709,-480.0,0.00046027,30]
[387834348,1758907847719,-480.0,0.00046027,30]
[387834349,1758907847729,-500.0,0.00046027,30]
[387834350,1758907847738,-481.34155722,0.00046027,30]
[387834351,1758907847747,-480.0,0.00046027,30]
[387834352,1758907847757,-480.0,0.00046027,30]
[387834353,1758907847766,-520.51,0.00046027,30]
[387834354,1758907847775,-480.0,0.00046027,30]
[387834355,1758907847784,-480.0,0.00046027,30]
[387834356,1758907847794,-480.0,0.00046027,30]
[387834357,1758907847803,-480.0,0.00046027,30]
[387834358,1758907847812,-480.0,0.00046027,30]
[387834359,1758907847821,-480.0,0.00046027,30]
[387834360,1758907847830,-1135.4,0.00046027,30]
[387834361,1758907847840,-480.0,0.00046027,30]
[387834362,1758907847850,-480.0,0.00046027,30]
[387834363,1758907847859,-480.0,0.00046027,30]
[387834364,1758907847868,-480.0,0.00046027,30]
[387834365,1758907847877,-480.0,0.00046027,30]
[387834366,1758907847886,-480.0,0.00046027,30]
[387834367,1758907847954,-480.0,0.00046027,30]
[387834368,1758907847963,-480.0,0.00046027,30]
[387834369,1758907847973,-480.0,0.00046027,30]
[387834370,1758907847983,-480.0,0.00046027,30]
[387834371,1758907847992,-480.0,0.00046027,30]
[387834372,1758907848001,-480.0,0.00046027,30]
[387834373,1758907848011,-480.0,0.00046027,30]
[387834374,1758907848020,-480.0,0.00046027,30]
[387834375,1758907848030,-480.0,0.00046027,30]
[387834376,1758907848039,-414.01635014,0.00046027,30]
[387834377,1758907848049,-445.73128931,0.00046027,30]
[387834378,1758907848059,-480.0,0.00046027,30]
[387834379,1758907848070,-312.41847419,0.00046027,30]
[387834380,1758907848079,-510.23126763,0.00046027,30]
[387834381,1758907848089,-480.0,0.00046027,30]
[387834382,1758907848098,-480.0,0.00046027,30]
[387834383,1758907848108,-480.0,0.00046027,30]
[387834384,1758907848117,-480.0,0.00046027,30]
[387834385,1758907848127,-480.0,0.00046027,30]
[387834386,1758907848138,-480.0,0.00046027,30]
[387834387,1758907848147,-480.0,0.00046027,30]
[387834388,1758907848156,-480.0,0.00046027,30]
[387834389,1758907848166,-536.21,0.00046027,30]
[387834390,1758907848176,-480.0,0.00046027,30]
[387834391,1758907848186,-480.0,0.00046027,30]
[387834392,1758907848195,-480.0,0.00046027,30]
[387834393,1758907848205,-460.8097944,0.00046027,30]
[387834394,1758907848214,-2586.08,0.00046027,30]
[387834395,1758907848225,-487.29723889,0.00046027,30]
[387834396,1758907848235,-500.0,0.00046027,30]
[387834397,1758907848244,-480.0,0.00046027,30]
[387834398,1758907848254,-550.74,0.00046027,30]
[387834399,1758907848265,-480.0,0.00046027,30]
[387834400,1758907848275,-530.24,0.00046027,30]
[387834401,1758907848285,-525.4582942,0.00046027,30]
[387834402,1758907848295,-480.0,0.00046027,30]
[387834403,1758907848307,-480.0,0.00046027,30]
[387834404,1758907848316,-480.0,0.00046027,30]
[387834405,1758907848326,-480.0,0.00046027,30]
[387834406,1758907848335,-480.0,0.00046027,30]
[387834407,1758907848346,-480.0,0.00046027,30]
[387834408,1758907848355,-480.0,0.00046027,30]
[387834409,1758907848365,-480.51653526,0.00046027,30]
[387834410,1758907848374,-480.0,0.00046027,30]
[387834411,1758907848386,-480.0,0.00046027,30]
[387834412,1758907848395,-480.0,0.00046027,30]
[387834413,1758907848405,-480.0,0.00046027,30]
[387834414,1758907848414,-480.0,0.00046027,30]
[387834415,1758907848425,-3690.18,0.00046027,30]
[387834416,1758907848434,-500.0,0.00046027,30]
[387834417,1758907848443,-500.0,0.00046027,30]
[387834418,1758907848453,-500.0,0.00046027,30]
[387834419,1758907848462,-500.0,0.00046027,30]
[387834420,1758907848474,-500.0,0.00046027,30]
[387834421,1758907848484,-480.0,0.00046027,30]
[387834422,1758907848494,-500.0,0.00046027,30]
[387834423,1758907848503,-480.0,0.00046027,30]
[387834424,1758907848512,-480.0,0.00046027,30]
[387834425,1758907848522,-156.42299935,0.00046027,30]
[387834426,1758907848531,-461.24409182,0.00046027,30]
[387834427,1758907848541,-480.0,0.00046027,30]
[387834428,1758907848550,-480.0,0.00046027,30]
[387834429,1758907848560,-483.27469545,0.00046027,30]
[387834430,1758907848569,-480.0,0.00046027,30]
[387834431,1758907848579,-480.0,0.00046027,30]
[387834432,1758907848589,-3134.41,0.00046027,30]
[387834433,1758907848598,-480.0,0.00046027,30]
[387834434,1758907848608,-480.0,0.00046027,30]
[387834435,1758907848617,-203.62478715,0.00046027,14]
[387834436,1758907848626,-480.0,0.00046027,30]
[387834437,1758907848636,-480.0,0.00046027,30]
[387834438,1758907848645,-624.67,0.00046027,30]
[387834439,1758907848655,-480.0,0.00046027,30]
[387834440,1758907848664,-480.0,0.00046027,30]
[387834441,1758907848674,-480.0,0.00046027,30]
[387834442,1758907848683,-480.0,0.00046027,30]
[387834443,1758907848693,-504.91,0.00046027,30]
[387834444,1758907848702,-480.0,0.00046027,30]
[387834445,1758907848712,-480.0,0.00046027,30]
[387834446,1758907848723,-480.0,0.00046027,30]
[387834447,1758907848733,-906.51,0.00046027,30]
[387834448,1758907848742,-603.27,0.00046027,30]
[387834449,1758907848751,-480.0,0.00046027,30]
[387834450,1758907848760,-480.0,0.00046027,30]
[387834451,1758907848769,-480.0,0.00046027,30]
[387834452,1758907848779,-480.0,0.00046027,30]
[387834453,1758907848787,-480.0,0.00046027,30]
[387834454,1758907848796,-480.77169187,0.00046027,30]
[387834455,1758907848805,-634.24,0.00046027,30]
[387834456,1758907848814,-480.99106975,0.00046027,30]
[387834457,1758907848823,-480.0,0.00046027,30]
[387834458,1758907848832,-480.0,0.00046027,30]
[387834459,1758907848842,-480.0,0.00046027,30]
[387834460,1758907848851,-480.0,0.00046027,30]
[387834461,1758907848860,-2245.16,0.00046027,30]
[387834462,1758907848928,-480.0,0.00046027,30]
[387834463,1758907848938,-561.87,0.00046027,30]
[387834464,1758907848947,-480.0,0.00046027,30]
[387834465,1758907848957,-480.0,0.00046027,30]
[387834466,1758907848968,-480.0,0.00046027,30]
[387834467,1758907848979,-500.0,0.00046027,30]
[387834468,1758907848988,-500.0,0.00046027,30]
[387834469,1758907848999,-500.0,0.00046027,30]
[387834470,1758907849009,-500.0,0.00046027,30]
[387834471,1758907849018,-500.0,0.00046027,30]
[387834472,1758907849028,-500.0,0.00046027,30]
[387834473,1758907849038,-480.0,0.00046027,30]
[387834474,1758907849049,-500.0,0.00046027,30]
[387834475,1758907849059,-500.0,0.00046027,30]
[387834476,1758907849069,-500.0,0.00046027,30]
[387834477,1758907849079,-500.0,0.00046027,30]
[387834478,1758907849089,-500.0,0.00046027,30]
[387834479,1758907849099,-500.0,0.00046027,30]
[387834480,1758907849109,-500.0,0.00046027,30]
[387834481,1758907849119,-500.0,0.00046027,30]
[387834482,1758907849128,-566.21116076,0.00046027,30]
[387834483,1758907849138,-480.0,0.00046027,7]
[387834484,1758907849147,-480.0,0.00046027,2]
[387834485,1758907849156,-480.0,0.00046027,30]
[387834486,1758907849166,-2326.73,0.00046027,30]
[387834487,1758907849176,-453.0463055,0.00046027,30]
[387834488,1758907849185,-1003.14,0.00046027,30]
[387834489,1758907849195,-480.0,0.00046027,30]
[387834490,1758907849204,-480.0,0.00046027,30]
[387834491,1758907849214,-480.0,0.00046027,30]
[387834492,1758907849224,-480.0,0.00046027,30]
[387834493,1758907849234,-480.0,0.00046027,30]
[387834494,1758907849243,-2180.97,0.00046027,30]
[387834495,1758907849253,-480.0,0.00046027,30]
[387834496,1758907849262,-480.0,0.00046027,30]
[387834497,1758907849272,-628.83,0.00046027,30]
[387834498,1758907849281,-2099.94,0.00046027,30]
[387834499,1758907849290,-480.0,0.00046027,30]
[387834500,1758907849301,-480.0,0.00046027,30]
[387834501,1758907849313,-480.78129978,0.00046027,30]
[387834502,1758907849323,-3627.42,0.00046027,30]
[387834503,1758907849332,-480.0,0.00046027,30]
[387834504,1758907849347,-480.0,0.00046027,30]
[387834505,1758907849365,-480.0,0.00046027,30]
[387834506,1758907849382,-577.81,0.00046027,30]
[387834507,1758907849402,-481.12256454,0.00046027,30]
[387834508,1758907849420,-480.0,0.00046027,30]
[387834509,1758907849439,-1544.18,0.00046027,30]
[387834510,1758907849456,-2551.44,0.00046027,30]
[387834511,1758907849473,-480.0,0.00046027,30]
[387834512,1758907849487,-480.0,0.00046027,30]
[387834513,1758907849506,-480.0,0.00046027,30]
[387834514,1758907849525,-480.0,0.00046027,30]